fUSD/lending_fUSD_20260625
["ID","MTS","AMOUNT","RATE_DAILY","PERIOD"]
[426386032,1782336754000,-1163.2134,0.00032,7]
[426386030,1782336754000,-367.116952,0.00032,7]
[426386029,1782336754000,-188.764914,0.00032,7]
[426386038,1782336754000,-183.653077,0.00032,7]
[426386034,1782336754000,-182.104545,0.00032,7]
[426386037,1782336754000,-188.764914,0.00032,7]
[426386028,1782336754000,-183.437026,0.00032,7]
[426386033,1782336754000,-151.0,0.00032,7]
[426386035,1782336754000,-151.0,0.00032,7]
[426386036,1782336754000,-183.437031,0.00032,7]
[426386041,1782336754000,-151.0,0.00032,7]
[426386040,1782336754000,-151.0,0.00032,7]
[426385983,1782336754000,-1593.628566,0.00032,7]
[426386012,1782336754000,-367.116955,0.00032,7]
[426386010,1782336754000,-200.986639,0.00032,7]
[426386027,1782336754000,-200.98664,0.00032,7]
[426386014,1782336754000,-151.0,0.00032,7]
[426386015,1782336754000,-200.986639,0.00032,7]
[426385988,1782336754000,-256.452319,0.00032,7]
[426385992,1782336754000,-151.0,0.00032,7]
[426385991,1782336754000,-1623.552044,0.00032,7]
[426385990,1782336754000,-256.452319,0.00032,7]
[426385987,1782336754000,-1593.6285666,0.00032,7]
[426385989,1782336754000,-151.0,0.00032,7]
[426385994,1782336754000,-1623.552044,0.00032,7]
[426385993,1782336754000,-256.452328,0.00032,7]
[426385995,1782336754000,-151.0,0.00032,7]
[426385998,1782336754000,-221.55951,0.00032,7]
[426385997,1782336754000,-1623.552036,0.00032,7]
[426386002,1782336754000,-151.0,0.00032,7]
[426385986,1782336754000,-267.328359,0.00032,7]
[426386013,1782336754000,-182.104539,0.00032,7]
[426385999,1782336754000,-221.55951,0.00032,7]
[426386009,1782336754000,-200.771952,0.00032,7]
[426386008,1782336754000,-151.0,0.00032,7]
[426386007,1782336754000,-151.0,0.00032,7]
[426386011,1782336754000,-151.0,0.00032,7]
[426386006,1782336754000,-167.22395,0.00032,7]
[426386004,1782336754000,-151.0,0.00032,7]
[426386003,1782336754000,-151.0,0.00032,7]
[426385996,1782336754000,-1623.552044,0.00032,7]
[426386001,1782336754000,-221.559519,0.00032,7]
[426386000,1782336754000,-221.55951,0.00032,7]
[426386005,1782336754000,-219.895976,0.00032,7]
[426386078,1782336755000,-1000.0,0.00032206,2]
[426386084,1782336755000,-12500.0,0.0003225,2]
[426386079,1782336755000,-1000.0,0.00032206,2]
[426386085,1782336755000,-22500.0,0.0003225,2]
[426386081,1782336755000,-370.33272318,0.00032222,30]
[426386069,1782336755000,-41506.11993618,0.000322,2]
[426386075,1782336755000,-1000.0,0.00032206,2]
[426386076,1782336755000,-1000.0,0.00032206,2]
[426386077,1782336755000,-1000.0,0.00032206,2]
[426386074,1782336755000,-1000.0,0.00032206,2]
[426386082,1782336755000,-2500.0,0.0003225,2]
[426386080,1782336755000,-332.54956627,0.00032219,2]
[426386086,1782336755000,-2500.0,0.0003225,2]
[426386090,1782336755000,-913.71277096,0.000323,2]
[426386088,1782336755000,-5971.88797017,0.000323,120]
[426386098,1782336755000,-251.0,0.0003234,2]
[426386087,1782336755000,-25000.0,0.0003225,2]
[426386089,1782336755000,-2040.684,0.000323,30]
[426386093,1782336755000,-10000.0,0.00032333,2]
[426386091,1782336755000,-1870.21436908,0.000323,5]
[426386094,1782336755000,-10000.0,0.00032333,2]
[426386092,1782336755000,-150.0,0.00032328,120]
[426386095,1782336755000,-10000.0,0.00032333,2]
[426386096,1782336755000,-251.0,0.0003234,2]
[426386097,1782336755000,-251.0,0.0003234,2]
[426386100,1782336755000,-150.0,0.00032345,2]
[426386083,1782336755000,-12500.0,0.0003225,2]
[426386072,1782336755000,-1000.0,0.00032206,2]
[426386050,1782336755000,-251.0,0.0003201,2]
[426386070,1782336755000,-2000.0,0.000322,120]
[426386111,1782336755000,-150.0,0.00032391,120]
[426386044,1782336755000,-3847.194923,0.00032,7]
[426386045,1782336755000,-188.764915,0.00032,7]
[426386043,1782336755000,-188.764914,0.00032,7]
[426386049,1782336755000,-3847.194923,0.00032,7]
[426386046,1782336755000,-151.0,0.00032,7]
[426386047,1782336755000,-222.202714,0.00032,7]
[426386042,1782336755000,-151.0,0.00032,7]
[426386048,1782336755000,-250.492452,0.00032,7]
[426386052,1782336755000,-251.0,0.0003201,2]
[426386054,1782336755000,-151.42675971,0.00032036,33]
[426386062,1782336755000,-749.0,0.00032144,2]
[426386058,1782336755000,-12500.0,0.00032125,2]
[426386059,1782336755000,-22500.0,0.00032125,2]
[426386057,1782336755000,-301.0519,0.000321,10]
[426386053,1782336755000,-251.0,0.0003201,2]
[426386055,1782336755000,-150.0,0.00032054,120]
[426386056,1782336755000,-350.0,0.000321,30]
[426386060,1782336755000,-2000.0,0.00032134,7]
[426386061,1782336755000,-749.0,0.00032144,2]
[426386064,1782336755000,-749.0,0.00032144,2]
[426386063,1782336755000,-749.0,0.00032144,2]
[426386067,1782336755000,-674.0,0.00032148,6]
[426386065,1782336755000,-749.0,0.00032144,2]
[426386066,1782336755000,-749.0,0.00032144,2]
[426386068,1782336755000,-150.0,0.00032191,120]
[426386071,1782336755000,-2027.0,0.000322,120]
[426386073,1782336755000,-1000.0,0.00032206,2]
[426386101,1782336755000,-150.0,0.00032345,2]
[426386051,1782336755000,-251.0,0.0003201,2]
[426386110,1782336755000,-200.0,0.00032388,2]
[426386126,1782336755000,-1000.0,0.000325,120]
[426386137,1782336755000,-22500.0,0.000325,2]
[426386147,1782336755000,-150.0,0.00032602,120]
[426386148,1782336755000,-150.0,0.00032603,60]
[426386141,1782336755000,-150.0,0.00032565,120]
[426386142,1782336755000,-350.0,0.00032565,25]
[426386138,1782336755000,-2500.0,0.000325,2]
[426386139,1782336755000,-25000.0,0.000325,2]
[426386140,1782336755000,-168.4125,0.0003251,14]
[426386146,1782336755000,-418.98,0.000326,60]
[426386143,1782336755000,-1919.93,0.00032572,30]
[426386144,1782336755000,-150.0,0.00032594,120]
[426386145,1782336755000,-7512.78,0.000326,30]
[426386149,1782336755000,-12500.0,0.00032625,2]
[426386151,1782336755000,-185.2,0.00032636,2]
[426386152,1782336755000,-482.48,0.00032636,2]
[426386160,1782336755000,-10000.0,0.00032667,2]
[426386157,1782336755000,-185.23,0.00032636,2]
[426386150,1782336755000,-22500.0,0.00032625,2]
[426386153,1782336755000,-573.73,0.00032636,2]
[426386154,1782336755000,-482.48,0.00032636,2]
[426386155,1782336755000,-152.55,0.00032636,2]
[426386158,1782336755000,-573.69,0.00032638,2]
[426386161,1782336755000,-9999.9,0.00032667,2]
[426386156,1782336755000,-482.4,0.00032636,2]
[426386159,1782336755000,-10000.0,0.00032667,2]
[426386099,1782336755000,-208.69520974,0.00032344,14]
[426386136,1782336755000,-12500.0,0.000325,2]
[426386134,1782336755000,-2500.0,0.000325,2]
[426386162,1782336755000,-674.0,0.00032668,6]
[426386132,1782336755000,-1327.53397644,0.000325,14]
[426386133,1782336755000,-800.0,0.000325,5]
[426386102,1782336755000,-150.0,0.00032345,2]
[426386108,1782336755000,-12500.0,0.00032375,2]
[426386107,1782336755000,-464.09,0.00032356,30]
[426386106,1782336755000,-150.0,0.00032345,2]
[426386104,1782336755000,-150.0,0.00032345,2]
[426386103,1782336755000,-150.0,0.00032345,2]
[426386109,1782336755000,-22500.0,0.00032375,2]
[426386113,1782336755000,-13000.0,0.00032463,7]
[426386123,1782336755000,-800.0,0.000325,5]
[426386112,1782336755000,-150.0,0.00032421,2]
[426386124,1782336755000,-800.0,0.000325,5]
[426386115,1782336755000,-152.0,0.00032473,10]
[426386117,1782336755000,-1206.762,0.000325,30]
[426386105,1782336755000,-150.0,0.00032345,2]
[426386118,1782336755000,-1206.762,0.000325,20]
[426386135,1782336755000,-12500.0,0.000325,2]
[426386131,1782336755000,-1000.0,0.000325,14]
[426386130,1782336755000,-1000.0,0.000325,7]
[426386128,1782336755000,-1000.0,0.000325,120]
[426386119,1782336755000,-1206.76,0.000325,30]
[426386129,1782336755000,-1164.47062821,0.000325,120]
[426386127,1782336755000,-1000.0,0.000325,120]
[426386121,1782336755000,-800.0,0.000325,5]
[426386114,1782336755000,-150.0,0.00032465,120]
[426386122,1782336755000,-800.0,0.000325,5]
[426386116,1782336755000,-180197.92149587,0.0003248,4]
[426386120,1782336755000,-800.0,0.000325,5]
[426386125,1782336755000,-7648.12249186,0.000325,30]
[426386211,1782336756000,-1000.0,0.00032876,30]
[426386203,1782336756000,-22500.0,0.00032875,2]
[426386201,1782336756000,-204.0,0.0003286,30]
[426386202,1782336756000,-12500.0,0.00032875,2]
[426386188,1782336756000,-4937.80392341,0.000328,2]
[426386196,1782336756000,-749.0,0.00032858,2]
[426386191,1782336756000,-155.0,0.00032802,30]
[426386193,1782336756000,-1559.0,0.00032802,30]
[426386190,1782336756000,-279.0,0.00032802,30]
[426386197,1782336756000,-749.0,0.00032858,2]
[426386200,1782336756000,-749.0,0.00032858,2]
[426386205,1782336756000,-1000.0,0.00032876,30]
[426386210,1782336756000,-1000.0,0.00032876,30]
[426386204,1782336756000,-1000.0,0.00032876,30]
[426386209,1782336756000,-1000.0,0.00032876,30]
[426386207,1782336756000,-1000.0,0.00032876,30]
[426386208,1782336756000,-1000.0,0.00032876,30]
[426386206,1782336756000,-1000.0,0.00032876,30]
[426386213,1782336756000,-1000.0,0.00032876,30]
[426386222,1782336756000,-956.86097428,0.00032876,120]
[426386223,1782336756000,-150.0,0.00032876,120]
[426386214,1782336756000,-1000.0,0.00032876,30]
[426386215,1782336756000,-1000.0,0.00032876,30]
[426386216,1782336756000,-1000.0,0.00032876,30]
[426386219,1782336756000,-1000.0,0.00032876,30]
[426386192,1782336756000,-1152.0,0.00032802,30]
[426386212,1782336756000,-1000.0,0.00032876,30]
[426386194,1782336756000,-208.0,0.00032802,30]
[426386175,1782336756000,-25000.0,0.0003275,2]
[426386198,1782336756000,-749.0,0.00032858,2]
[426386217,1782336756000,-1000.0,0.00032876,30]
[426386169,1782336756000,-150.0,0.00032739,120]
[426386172,1782336756000,-12500.0,0.0003275,2]
[426386171,1782336756000,-9886.78,0.0003275,2]
[426386170,1782336756000,-253.4,0.0003275,2]
[426386168,1782336756000,-559.56,0.00032734,7]
[426386174,1782336756000,-2500.0,0.0003275,2]
[426386173,1782336756000,-22500.0,0.0003275,2]
[426386166,1782336756000,-464.09,0.00032722,2]
[426386163,1782336756000,-251.0,0.0003267,2]
[426386164,1782336756000,-251.0,0.0003267,2]
[426386165,1782336756000,-5837.59,0.000327,120]
[426386167,1782336756000,-1105.3,0.00032734,7]
[426386187,1782336756000,-10000.0,0.000328,14]
[426386181,1782336756000,-1143.0,0.00032764,30]
[426386176,1782336756000,-162.0,0.00032762,30]
[426386179,1782336756000,-251.0,0.00032762,30]
[426386180,1782336756000,-464.0,0.00032762,30]
[426386177,1782336756000,-733.0,0.00032762,30]
[426386178,1782336756000,-222.0,0.00032762,30]
[426386186,1782336756000,-10275.05465079,0.000328,30]
[426386182,1782336756000,-151.0,0.00032764,30]
[426386183,1782336756000,-413.0,0.00032776,7]
[426386184,1782336756000,-150.0,0.00032788,120]
[426386185,1782336756000,-65214.4587,0.000328,2]
[426386189,1782336756000,-336.0,0.00032802,30]
[426386199,1782336756000,-749.0,0.00032858,2]
[426386195,1782336756000,-1286.72,0.00032848,7]
[426386218,1782336756000,-681.45691317,0.00032876,30]
[426386226,1782336756000,-1000.0,0.00032877,10]
[426386220,1782336756000,-1000.0,0.00032876,30]
[426386256,1782336756000,-189.684094,0.00032877,7]
[426386252,1782336756000,-189.684094,0.00032877,7]
[426386259,1782336756000,-1180.28,0.00032877,2]
[426386270,1782336756000,-371.7192,0.00032877,7]
[426386269,1782336756000,-371.7192,0.00032877,7]
[426386260,1782336756000,-371.7192,0.00032877,7]
[426386258,1782336756000,-189.684104,0.00032877,7]
[426386262,1782336756000,-371.7192,0.00032877,7]
[426386263,1782336756000,-371.7192,0.00032877,7]
[426386261,1782336756000,-371.7192,0.00032877,7]
[426386267,1782336756000,-371.7192,0.00032877,7]
[426386265,1782336756000,-371.7192,0.00032877,7]
[426386264,1782336756000,-371.7192,0.00032877,7]
[426386266,1782336756000,-371.7192,0.00032877,7]
[426386268,1782336756000,-371.7192,0.00032877,7]
[426386271,1782336756000,-371.7192,0.00032877,7]
[426386274,1782336756000,-371.7192,0.00032877,7]
[426386278,1782336756000,-371.7192,0.00032877,7]
[426386275,1782336756000,-371.7192,0.00032877,7]
[426386273,1782336756000,-371.7192,0.00032877,7]
[426386282,1782336756000,-372.692634,0.00032877,7]
[426386272,1782336756000,-371.7192,0.00032877,7]
[426386281,1782336756000,-372.692634,0.00032877,7]
[426386276,1782336756000,-371.7192,0.00032877,7]
[426386280,1782336756000,-372.692634,0.00032877,7]
[426386221,1782336756000,-292.53810449,0.00032876,30]
[426386279,1782336756000,-371.7192,0.00032877,7]
[426386250,1782336756000,-189.684094,0.00032877,7]
[426386255,1782336756000,-189.684094,0.00032877,7]
[426386277,1782336756000,-371.7192,0.00032877,7]
[426386253,1782336756000,-189.684094,0.00032877,7]
[426386251,1782336756000,-189.684094,0.00032877,7]
[426386228,1782336756000,-1000.0,0.00032877,10]
[426386232,1782336756000,-1000.0,0.00032877,10]
[426386229,1782336756000,-1000.0,0.00032877,10]
[426386227,1782336756000,-1000.0,0.00032877,10]
[426386225,1782336756000,-1000.0,0.00032877,10]
[426386230,1782336756000,-1000.0,0.00032877,10]
[426386231,1782336756000,-1000.0,0.00032877,10]
[426386233,1782336756000,-1000.0,0.00032877,10]
[426386235,1782336756000,-151.0,0.00032877,7]
[426386234,1782336756000,-1000.0,0.00032877,10]
[426386237,1782336756000,-151.0,0.00032877,7]
[426386236,1782336756000,-151.0,0.00032877,7]
[426386224,1782336756000,-352.08,0.00032877,2]
[426386240,1782336756000,-189.684094,0.00032877,7]
[426386239,1782336756000,-189.684094,0.00032877,7]
[426386249,1782336756000,-189.684094,0.00032877,7]
[426386254,1782336756000,-189.684094,0.00032877,7]
[426386257,1782336756000,-189.684094,0.00032877,7]
[426386247,1782336756000,-189.684094,0.00032877,7]
[426386244,1782336756000,-189.684094,0.00032877,7]
[426386248,1782336756000,-189.684094,0.00032877,7]
[426386241,1782336756000,-189.684094,0.00032877,7]
[426386245,1782336756000,-189.684094,0.00032877,7]
[426386243,1782336756000,-189.684094,0.00032877,7]
[426386246,1782336756000,-189.684094,0.00032877,7]
[426386238,1782336756000,-153.868075,0.00032877,7]
[426386242,1782336756000,-189.684094,0.00032877,7]
[426386323,1782336757000,-500.0,0.00032955,2]
[426386320,1782336757000,-150.0,0.00032955,2]
[426386318,1782336757000,-150.89283576,0.00032955,2]
[426386324,1782336757000,-500.0,0.00032955,2]
[426386316,1782336757000,-1654.54,0.00032911,30]
[426386313,1782336757000,-519080.70269093,0.000329,30]
[426386314,1782336757000,-30000.0,0.000329,120]
[426386310,1782336757000,-150.26608515,0.00032877,40]
[426386319,1782336757000,-150.0,0.00032955,2]
[426386317,1782336757000,-1158.16,0.00032913,7]
[426386309,1782336757000,-436.81788663,0.00032877,2]
[426386331,1782336757000,-50000.0,0.00033,6]
[426386321,1782336757000,-150.0,0.00032955,2]
[426386325,1782336757000,-500.0,0.00032955,2]
[426386326,1782336757000,-1000.0,0.00032955,2]
[426386327,1782336757000,-150.0,0.00032956,120]
[426386328,1782336757000,-100000.0,0.0003299,120]
[426386329,1782336757000,-150.0,0.00032999,7]
[426386330,1782336757000,-50000.0,0.00033,5]
[426386335,1782336757000,-1433.04769658,0.00033,7]
[426386332,1782336757000,-50000.0,0.00033,7]
[426386333,1782336757000,-120464.55835221,0.00033,2]
[426386337,1782336757000,-671.5819077,0.00033,30]
[426386311,1782336757000,-5583.4803532,0.000329,4]
[426386322,1782336757000,-503.00230432,0.00032955,2]
[426386307,1782336757000,-500.0,0.00032877,2]
[426386293,1782336757000,-372.692634,0.00032877,7]
[426386315,1782336757000,-151.42675971,0.00032903,34]
[426386284,1782336757000,-372.692634,0.00032877,7]
[426386285,1782336757000,-372.692634,0.00032877,7]
[426386286,1782336757000,-372.692634,0.00032877,7]
[426386283,1782336757000,-372.692634,0.00032877,7]
[426386288,1782336757000,-372.692634,0.00032877,7]
[426386289,1782336757000,-372.692634,0.00032877,7]
[426386290,1782336757000,-372.692634,0.00032877,7]
[426386292,1782336757000,-372.692634,0.00032877,7]
[426386287,1782336757000,-372.692634,0.00032877,7]
[426386291,1782336757000,-372.692634,0.00032877,7]
[426386294,1782336757000,-372.692634,0.00032877,7]
[426386298,1782336757000,-372.692634,0.00032877,7]
[426386296,1782336757000,-372.692634,0.00032877,7]
[426386297,1782336757000,-372.692634,0.00032877,7]
[426386334,1782336757000,-52450.5880079,0.00033,2]
[426386304,1782336757000,-559.8747123,0.00032877,2]
[426386295,1782336757000,-372.692634,0.00032877,7]
[426386299,1782336757000,-372.692638,0.00032877,7]
[426386303,1782336757000,-373.2498082,0.00032877,2]
[426386300,1782336757000,-159.11,0.00032877,120]
[426386302,1782336757000,-186.6249041,0.00032877,2]
[426386301,1782336757000,-881.89,0.00032877,120]
[426386308,1782336757000,-500.0,0.00032877,2]
[426386305,1782336757000,-746.4996164,0.00032877,2]
[426386306,1782336757000,-500.0,0.00032877,2]
[426386312,1782336757000,-449.5,0.000329,120]
[426386336,1782336757000,-3699.913947,0.00033,2]
[426386383,1782336757000,-150.0,0.0003308,2]
[426386349,1782336757000,-800.0,0.00033,5]
[426386370,1782336757000,-389.43,0.00033,60]
[426386371,1782336757000,-10000.0,0.00033,2]
[426386364,1782336757000,-160.9657,0.00033,120]
[426386368,1782336757000,-50000.0,0.00033,30]
[426386367,1782336757000,-251.0,0.00033,2]
[426386374,1782336757000,-22500.0,0.00033,2]
[426386376,1782336757000,-10000.0,0.00033,7]
[426386380,1782336757000,-150.0,0.0003308,2]
[426386378,1782336757000,-150.0,0.00033048,120]
[426386382,1782336757000,-150.0,0.0003308,2]
[426386385,1782336757000,-565.0,0.00033085,7]
[426386375,1782336757000,-25000.0,0.00033,2]
[426386377,1782336757000,-150.0,0.00033013,120]
[426386384,1782336757000,-150.0,0.0003308,2]
[426386381,1782336757000,-152.86766613,0.0003308,2]
[426386386,1782336757000,-464.09,0.00033088,7]
[426386387,1782336757000,-1100.05,0.00033092,5]
[426386390,1782336757000,-318.2248,0.000331,30]
[426386388,1782336757000,-101782.14,0.000331,30]
[426386389,1782336757000,-1000.0,0.000331,30]
[426386391,1782336757000,-3506.789,0.000331,10]
[426386392,1782336757000,-3506.789,0.000331,10]
[426386393,1782336757000,-150.0,0.00033107,120]
[426386394,1782336757000,-159.09315877,0.00033123,120]
[426386339,1782336757000,-21200.0,0.00033,7]
[426386363,1782336757000,-500.75615214,0.00033,120]
[426386366,1782336757000,-800.0,0.00033,5]
[426386379,1782336757000,-150.0,0.0003308,2]
[426386365,1782336757000,-8389.0,0.00033,120]
[426386350,1782336757000,-3000.0,0.00033,14]
[426386373,1782336757000,-2500.0,0.00033,2]
[426386338,1782336757000,-1097.70157119,0.00033,120]
[426386344,1782336757000,-1138.20619469,0.00033,10]
[426386341,1782336757000,-149690.4709597,0.00033,2]
[426386342,1782336757000,-301.8468469,0.00033,30]
[426386347,1782336757000,-800.0,0.00033,5]
[426386340,1782336757000,-1000.0,0.00033,120]
[426386343,1782336757000,-10190.0,0.00033,120]
[426386348,1782336757000,-800.0,0.00033,5]
[426386346,1782336757000,-800.0,0.00033,5]
[426386351,1782336757000,-4814.73279867,0.00033,30]
[426386353,1782336757000,-3887.0,0.00033,120]
[426386345,1782336757000,-800.0,0.00033,5]
[426386355,1782336757000,-10000.0,0.00033,120]
[426386372,1782336757000,-12500.0,0.00033,2]
[426386354,1782336757000,-10000.0,0.00033,120]
[426386359,1782336757000,-4444.0,0.00033,120]
[426386362,1782336757000,-3686.07674556,0.00033,20]
[426386358,1782336757000,-269.79981909,0.00033,30]
[426386360,1782336757000,-290.0,0.00033,60]
[426386369,1782336757000,-150.0,0.00033,14]
[426386357,1782336757000,-5058.0,0.00033,15]
[426386352,1782336757000,-162395.696843,0.00033,30]
[426386356,1782336757000,-181.0,0.00033,120]
[426386361,1782336757000,-22069.0,0.00033,120]
[426386434,1782336758000,-300.0,0.000334,28]
[426386426,1782336758000,-449.2593659,0.0003333,7]
[426386425,1782336758000,-440244.30655553,0.000333,2]
[426386428,1782336758000,-2439.08,0.00033335,30]
[426386424,1782336758000,-3000000.0,0.000333,120]
[426386430,1782336758000,-152.0,0.00033368,11]
[426386432,1782336758000,-281.02073688,0.000334,30]
[426386433,1782336758000,-1730.1051,0.000334,30]
[426386437,1782336758000,-150.0,0.00033424,120]
[426386431,1782336758000,-22500.0,0.00033375,2]
[426386440,1782336758000,-644.42,0.0003346,2]
[426386449,1782336758000,-185.24,0.0003346,2]
[426386439,1782336758000,-464.09,0.00033453,30]
[426386435,1782336758000,-5000.0,0.000334,120]
[426386438,1782336758000,-181.0,0.00033432,2]
[426386442,1782336758000,-644.42,0.0003346,2]
[426386441,1782336758000,-151.0,0.0003346,2]
[426386452,1782336758000,-151.0,0.00033461,2]
[426386443,1782336758000,-185.23,0.0003346,2]
[426386445,1782336758000,-644.42,0.0003346,2]
[426386450,1782336758000,-644.35,0.0003346,2]
[426386446,1782336758000,-573.72,0.0003346,2]
[426386444,1782336758000,-151.0,0.0003346,2]
[426386429,1782336758000,-150.0,0.00033365,120]
[426386436,1782336758000,-5200.0,0.000334,30]
[426386423,1782336758000,-3000000.0,0.000333,120]
[426386395,1782336758000,-500.0,0.00033123,120]
[426386422,1782336758000,-3000000.0,0.000333,120]
[426386448,1782336758000,-644.42,0.0003346,2]
[426386397,1782336758000,-234.58710338,0.00033123,120]
[426386407,1782336758000,-22500.0,0.0003325,2]
[426386396,1782336758000,-381.24336265,0.00033123,120]
[426386398,1782336758000,-2807.38,0.00033125,2]
[426386406,1782336758000,-2500.0,0.0003325,2]
[426386400,1782336758000,-150.0,0.0003315,120]
[426386401,1782336758000,-1919.93,0.00033181,30]
[426386402,1782336758000,-674.0,0.00033188,7]
[426386404,1782336758000,-500.0,0.000332,120]
[426386399,1782336758000,-22500.0,0.00033125,2]
[426386405,1782336758000,-1730.04,0.000332,7]
[426386421,1782336758000,-20000.0,0.000333,120]
[426386403,1782336758000,-331.06920486,0.00033197,2]
[426386410,1782336758000,-1084.72729273,0.000333,120]
[426386417,1782336758000,-12349.36,0.000333,20]
[426386411,1782336758000,-1000.0,0.000333,7]
[426386416,1782336758000,-12349.361,0.000333,10]
[426386412,1782336758000,-12000.000001,0.000333,30]
[426386408,1782336758000,-25000.0,0.0003325,2]
[426386414,1782336758000,-1384.989,0.000333,20]
[426386415,1782336758000,-1384.99,0.000333,10]
[426386413,1782336758000,-1384.989,0.000333,30]
[426386418,1782336758000,-3000000.0,0.000333,120]
[426386420,1782336758000,-3000000.0,0.000333,120]
[426386419,1782336758000,-3000000.0,0.000333,120]
[426386409,1782336758000,-150.0,0.00033287,120]
[426386447,1782336758000,-151.0,0.0003346,2]
[426386427,1782336758000,-10000.0,0.00033333,2]
[426386454,1782336758000,-482.49,0.00033461,2]
[426386483,1782336758000,-235.2,0.00033461,2]
[426386478,1782336758000,-151.0,0.00033461,2]
[426386489,1782336758000,-151.0,0.00033464,2]
[426386482,1782336758000,-151.0,0.00033461,2]
[426386487,1782336758000,-151.0,0.00033464,2]
[426386484,1782336758000,-151.0,0.00033461,2]
[426386491,1782336758000,-151.0,0.00033464,2]
[426386501,1782336758000,-151.0,0.00033481,2]
[426386492,1782336758000,-151.0,0.00033464,2]
[426386493,1782336758000,-644.42,0.00033464,2]
[426386490,1782336758000,-573.73,0.00033464,2]
[426386497,1782336758000,-151.0,0.00033481,2]
[426386481,1782336758000,-151.0,0.00033461,2]
[426386494,1782336758000,-151.0,0.00033464,2]
[426386495,1782336758000,-151.0,0.00033464,2]
[426386496,1782336758000,-158.3714054,0.00033467,2]
[426386500,1782336758000,-151.0,0.00033481,2]
[426386499,1782336758000,-573.24,0.00033481,2]
[426386502,1782336758000,-482.48,0.00033481,2]
[426386507,1782336758000,-573.71,0.00033481,2]
[426386503,1782336758000,-151.0,0.00033481,2]
[426386505,1782336758000,-153.11,0.00033481,2]
[426386506,1782336758000,-573.72,0.00033481,2]
[426386504,1782336758000,-184.77,0.00033481,2]
[426386508,1782336758000,-644.42,0.00033481,2]
[426386451,1782336758000,-151.0,0.00033461,2]
[426386498,1782336758000,-151.0,0.00033481,2]
[426386485,1782336758000,-151.0,0.00033461,2]
[426386509,1782336758000,-642.01,0.0003349,41]
[426386488,1782336758000,-151.0,0.00033464,2]
[426386455,1782336758000,-644.42,0.00033461,2]
[426386486,1782336758000,-183.30132495,0.00033462,2]
[426386464,1782336758000,-151.0,0.00033461,2]
[426386458,1782336758000,-482.48,0.00033461,2]
[426386457,1782336758000,-151.0,0.00033461,2]
[426386456,1782336758000,-424.87,0.00033461,2]
[426386461,1782336758000,-151.0,0.00033461,2]
[426386460,1782336758000,-151.0,0.00033461,2]
[426386463,1782336758000,-253.03,0.00033461,2]
[426386459,1782336758000,-151.0,0.00033461,2]
[426386462,1782336758000,-151.29,0.00033461,2]
[426386476,1782336758000,-151.0,0.00033461,2]
[426386466,1782336758000,-396.32,0.00033461,2]
[426386453,1782336758000,-151.0,0.00033461,2]
[426386467,1782336758000,-185.23,0.00033461,2]